fUSD/lending_fUSD_20260111
["ID","MTS","AMOUNT","RATE_DAILY","PERIOD"]
[401281315,1768099839754,-8515.61226738,0.00016677,2]
[401281316,1768099839766,-8947.21879473,0.00016677,2]
[401281317,1768099839778,-8943.78386462,0.00016677,2]
[401281318,1768099839789,-9077.54866152,0.00016677,2]
[401281319,1768099839800,-8943.84023489,0.00016677,2]
[401281321,1768099841370,-1.7e-07,0.00016677,2]
[401281322,1768099841435,-628.644393,0.00016677,2]
[401281323,1768099841447,-121271.95422377,0.00016677,2]
[401281324,1768099841456,-202.27919226,0.00016689,2]
[401281325,1768099841466,-250.0,0.00017,2]
[401281326,1768099841476,-587.0,0.00017087,2]
[401281327,1768099841485,-282.6,0.00017164,2]
[401281328,1768099841494,-2468.6329303,0.00017232,2]
[401281329,1768099841504,-2351.0,0.00017234,2]
[401281330,1768099841514,-150.0,0.00017699,2]
[401281331,1768099841523,-150.0,0.00017699,2]
[401281332,1768099841533,-431.0,0.00017699,2]
[401281333,1768099841544,-150.0,0.00017699,2]
[401281334,1768099841554,-500.0,0.00017699,2]
[401281335,1768099841563,-159.58939887,0.00017699,2]
[401281336,1768099841572,-150.0,0.00017699,2]
[401281337,1768099841581,-150.0,0.00017699,2]
[401281338,1768099841592,-150.0,0.00017754,2]
[401281339,1768099841601,-150.0,0.00017754,2]
[401281340,1768099841611,-431.0,0.00017754,2]
[401281341,1768099841621,-500.0,0.00017754,2]
[401281342,1768099841631,-150.0,0.00017754,2]
[401281343,1768099841640,-150.0,0.00017754,2]
[401281344,1768099841650,-150.0,0.00017808,2]
[401281345,1768099841660,-150.0,0.00017809,2]
[401281346,1768099841669,-150.0,0.00017809,2]
[401281347,1768099841679,-431.0,0.00017809,2]
[401281348,1768099841688,-339.41796982,0.00017809,2]
[401281349,1768099841698,-150.0,0.00017809,2]
[401281350,1768099841708,-150.0,0.00017809,2]
[401281351,1768099841718,-245.49911247,0.00017863,2]
[401281352,1768099841728,-196.52587097,0.00017863,2]
[401281353,1768099841737,-431.0,0.00017863,2]
[401281354,1768099841747,-200.0,0.00017863,2]
[401281355,1768099841758,-200.0,0.00017863,2]
[401281356,1768099841769,-431.0,0.00017918,2]
[401281357,1768099841779,-514.52722561,0.00017973,2]
[401281358,1768099841788,-227.26396522,0.00017973,2]
[401281359,1768099841797,-500.0,0.00017973,2]
[401281360,1768099841806,-500.0,0.00017973,2]
[401281361,1768099841815,-181.18183049,0.00017973,2]
[401281362,1768099841826,-431.0,0.00017973,2]
[401281363,1768099841835,-984.24,0.00018,7]
[401281364,1768099841844,-431.0,0.00018028,2]
[401281365,1768099841854,-500.0,0.00018068,2]
[401281366,1768099841863,-312.17648525,0.00018068,2]
[401281367,1768099841873,-194290.6219605,0.00018069,2]
[401281368,1768099841883,-431.0,0.00018083,2]
[401281369,1768099841892,-431.0,0.00018137,2]
[401281370,1768099841902,-431.0,0.00018192,2]
[401281371,1768099841912,-431.0,0.00018247,2]
[401281372,1768099841921,-431.0,0.00018302,2]
[401281373,1768099841931,-500.0,0.00018342,2]
[401281374,1768099841941,-431.0,0.00018357,2]
[401281375,1768099841950,-431.0,0.00018411,2]
[401281376,1768099841959,-431.0,0.00018466,2]
[401281377,1768099841969,-1071.4797401,0.00018485,2]
[401281378,1768099841979,-175.7,0.000185,2]
[401281379,1768099841988,-1000.0,0.00018521,2]
[401281380,1768099841997,-1000.0,0.00018521,2]
[401281381,1768099842007,-431.0,0.00018521,2]
[401281382,1768099842016,-431.0,0.00018576,2]
[401281383,1768099842025,-282.6,0.00018604,2]
[401281384,1768099842034,-431.0,0.00018631,2]
[401281385,1768099842044,-596.92608175,0.00018683,2]
[401281386,1768099842054,-2074.12,0.00018685,2]
[401281387,1768099842064,-431.0,0.00018685,2]
[401281388,1768099842073,-224.39,0.00018687,2]
[401281389,1768099842082,-823.0,0.00018715,2]
[401281390,1768099842091,-431.0,0.0001874,2]
[401281391,1768099842100,-431.0,0.00018795,2]
[401281392,1768099842109,-431.0,0.0001885,2]
[401281393,1768099842119,-431.0,0.00018904,2]
[401281394,1768099842128,-2468.6329303,0.00018917,2]
[401281395,1768099842138,-1000.0,0.00018932,2]
[401281396,1768099842147,-1300.0,0.00018954,2]
[401281397,1768099842157,-2125.0,0.00018957,2]
[401281398,1768099842166,-439.0,0.00018959,2]
[401281399,1768099842175,-7061.22729547,0.00019,2]
[401281400,1768099842184,-153.66745427,0.00019,2]
[401281401,1768099842193,-300.0,0.00019,2]
[401281402,1768099842202,-1500.0,0.00019068,2]
[401281403,1768099842211,-1500.0,0.00019068,2]
[401281404,1768099842220,-230.44694038,0.00019082,2]
[401281405,1768099842229,-158.17092324,0.00019157,2]
[401281406,1768099842239,-500.0,0.00019176,2]
[401281407,1768099842248,-500.0,0.00019224,2]
[401281408,1768099842257,-500.0,0.00019355,2]
[401281409,1768099842269,-168.0,0.00019358,2]
[401281410,1768099842278,-350.0,0.00019397,2]
[401281411,1768099842287,-168.0,0.00019419,2]
[401281412,1768099842296,-350.0,0.0001944,2]
[401281413,1768099842306,-168.0,0.00019498,2]
[401281414,1768099842315,-350.0,0.00019544,2]
[401281415,1768099842325,-1000.0,0.00019583,2]
[401281416,1768099842336,-1502.29397546,0.00019616,2]
[401281417,1768099842346,-2000.0,0.00019616,2]
[401281418,1768099842356,-224.39,0.00019622,2]
[401281419,1768099842365,-228.11344328,0.00019678,2]
[401281420,1768099842374,-998.0,0.00019678,2]
[401281421,1768099842383,-344.07605335,0.00019678,2]
[401281422,1768099842392,-553.64373807,0.00019678,2]
[401281423,1768099842402,-168.0,0.00019741,2]
[401281424,1768099842411,-166.66,0.00019749,2]
[401281425,1768099842420,-350.0,0.00019759,2]
[401281426,1768099842430,-500.0,0.00019798,2]
[401281427,1768099842439,-3584.06307369,0.000199,2]
[401281428,1768099842448,-500.0,0.0002,2]
[401281429,1768099842458,-150.09702334,0.0002,20]
[401281430,1768099842467,-150.0,0.0002,2]
[401281431,1768099842476,-150.0,0.0002,2]
[401281432,1768099842486,-195.25741208,0.0002,2]
[401281433,1768099842495,-500.0,0.00020001,2]
[401281434,1768099842504,-500.0,0.00020002,2]
[401281435,1768099842513,-499.9999,0.00020003,2]
[401281436,1768099842522,-350.0,0.00020031,2]
[401281437,1768099842531,-282.6,0.00020043,2]
[401281438,1768099842540,-2500.0,0.00020164,2]
[401281439,1768099842549,-350.0,0.00020175,2]
[401281440,1768099842559,-168.0,0.00020207,2]
[401281441,1768099842568,-574.12855637,0.00020226,2]
[401281442,1768099842577,-168.0,0.00020256,2]
[401281443,1768099842587,-168.0,0.00020371,2]
[401281444,1768099842596,-166.66,0.00020401,2]
[401281445,1768099842605,-549.0,0.00020498,2]
[401281446,1768099842615,-168.0,0.00020516,2]
[401281447,1768099842624,-350.0,0.00020551,2]
[401281448,1768099842632,-168.0,0.00020556,2]
[401281449,1768099842642,-224.39,0.00020556,2]
[401281450,1768099842651,-168.0,0.00020625,2]
[401281451,1768099842660,-350.0,0.0002064,2]
[401281452,1768099842669,-500.0,0.00020651,2]
[401281453,1768099842679,-168.0,0.00020699,2]
[401281454,1768099842688,-3000.0,0.00020712,2]
[401281455,1768099842697,-500.0,0.00020752,2]
[401281456,1768099842706,-350.0,0.0002076,2]
[401281457,1768099842715,-1071.4797401,0.00020771,2]
[401281458,1768099842724,-595.37131296,0.00020774,2]
[401281459,1768099842733,-168.0,0.00020776,2]
[401281460,1768099842743,-168.0,0.00020786,2]
[401281461,1768099842752,-500.0,0.00020835,2]
[401281462,1768099842761,-168.0,0.0002084,2]
[401281463,1768099842774,-168.0,0.00020877,2]
[401281464,1768099842784,-161.93,0.00020899,2]
[401281465,1768099842794,-500.0,0.00020959,2]
[401281466,1768099842804,-350.0,0.00021,2]
[401281467,1768099842813,-250.822807,0.00021,2]
[401281468,1768099842823,-166.66,0.00021053,2]
[401281469,1768099842833,-168.0,0.00021155,2]
[401281470,1768099842845,-3002.1558756,0.0002126,2]
[401281471,1768099842855,-1000.0,0.00021299,2]
[401281472,1768099842865,-617.40005154,0.00021322,2]
[401281473,1768099842874,-282.6,0.00021483,2]
[401281474,1768099842884,-224.39,0.00021491,2]
[401281475,1768099842893,-5521.0,0.000216,5]
[401281476,1768099842903,-166.66,0.00021705,2]
[401281477,1768099842913,-304.45486054,0.00021731,2]
[401281478,1768099842922,-3339.83458548,0.00021751,2]
[401281479,1768099842932,-161.91,0.00021827,2]
[401281480,1768099842942,-609.54108284,0.0002187,2]
[401281481,1768099842952,-500.0,0.00021917,2]
[401281482,1768099842962,-150.0,0.00021917,2]
[401281483,1768099843204,-5000.0,0.00021918,2]
[401281484,1768099843224,-150.00606179,0.00021918,2]
[401281485,1768099843234,-500.0,0.00021918,2]
[401281486,1768099843243,-500.0,0.00021918,2]
[401281487,1768099843252,-500.0,0.00021918,2]
[401281488,1768099843263,-500.0,0.00021918,2]
[401281489,1768099843275,-500.0,0.00021918,2]
[401281490,1768099843284,-500.0,0.00021918,2]
[401281491,1768099843294,-500.0,0.00021918,2]
[401281492,1768099843303,-500.0,0.00021918,2]
[401281493,1768099843313,-500.0,0.00021918,2]
[401281494,1768099843323,-500.0,0.00021918,2]
[401281495,1768099843331,-500.0,0.00021918,2]
[401281496,1768099843342,-500.0,0.00021918,2]
[401281497,1768099843351,-500.0,0.00021918,2]
[401281498,1768099843360,-500.0,0.00021918,2]
[401281499,1768099843370,-379.73895657,0.00021918,2]
[401281500,1768099843379,-500.0,0.00021918,2]
[401281501,1768099843389,-500.0,0.00021918,2]
[401281502,1768099843399,-500.0,0.00021918,2]
[401281503,1768099843408,-500.0,0.00021918,2]
[401281504,1768099843418,-500.0,0.00021918,2]
[401281505,1768099843427,-500.0,0.00021918,2]
[401281506,1768099843436,-500.0,0.00021918,2]
[401281507,1768099843446,-500.0,0.00021918,2]
[401281508,1768099843455,-500.0,0.00021918,2]
[401281509,1768099843465,-650.0,0.00021918,2]
[401281510,1768099843475,-500.0,0.00021918,2]
[401281511,1768099843484,-500.0,0.00021918,2]
[401281512,1768099843494,-500.0,0.00021918,2]
[401281513,1768099843503,-500.0,0.00021918,2]
[401281514,1768099843513,-6012.11,0.00022,7]
[401281515,1768099843522,-500.0,0.00022071,2]
[401281516,1768099843531,-166.66,0.00022357,2]
[401281517,1768099843540,-998.0,0.00022417,2]
[401281518,1768099843549,-224.39,0.00022425,2]
[401281519,1768099843558,-500.0,0.00022503,2]
[401281520,1768099843567,-500.0,0.00022662,2]
[401281521,1768099843576,-158.61,0.00022678,2]
[401281522,1768099843585,-500.0,0.00022679,2]
[401281523,1768099843594,-500.0,0.00022738,2]
[401281524,1768099843603,-500.0,0.00022797,2]
[401281525,1768099843612,-500.0,0.00022896,2]
[401281526,1768099843621,-500.0,0.00022905,2]
[401281527,1768099843630,-282.6,0.00022923,2]
[401281528,1768099843639,-161.93,0.00022949,2]
[401281529,1768099843648,-161.677,0.0002297,2]
[401281530,1768099843657,-3468.0,0.0002297,2]
[401281531,1768099843666,-614.497,0.0002297,2]
[401281532,1768099843675,-1405.0,0.0002297,2]
[401281533,1768099843684,-1267.0,0.0002297,2]
[401281534,1768099843694,-506.0,0.0002297,2]
[401281535,1768099843703,-564.057,0.0002297,2]
[401281536,1768099843713,-2437.0,0.0002297,2]
[401281537,1768099843722,-6555.0,0.0002297,2]
[401281538,1768099843731,-500.0,0.0002297,2]
[401281539,1768099843741,-400.0,0.00023,2]
[401281540,1768099843750,-200.0,0.00023,2]
[401281541,1768099843760,-166.66,0.00023009,2]
[401281542,1768099843769,-834.0,0.00023315,3]
[401281543,1768099843779,-596.92608175,0.00023327,2]
[401281544,1768099843788,-834.0,0.00023335,3]
[401281545,1768099843798,-6012.11,0.000234,7]
[401281546,1768099843808,-500.0,0.00023445,2]
[401281547,1768099843817,-250.75631726,0.00023476,7]
[401281548,1768099843827,-25000.0,0.00023477,7]
[401281549,1768099843837,-358.38317985,0.00023574,2]
[401281550,1768099843847,-1432.0991867,0.00023574,2]
[401281551,1768099843856,-834.0,0.00023575,3]
[401281552,1768099843865,-162.0,0.00023655,3]
[401281553,1768099843875,-537.0,0.0002366,3]
[401281554,1768099843884,-1000.0,0.00023666,2]
[401281555,1768099843893,-451.03823454,0.00023795,2]
[401281556,1768099843903,-834.0,0.0002386,3]
[401281557,1768099843912,-834.0,0.0002386,3]
[401281558,1768099843922,-762.81331467,0.00023897,2]
[401281559,1768099843932,-834.0,0.00023985,3]
[401281560,1768099843942,-500.0,0.00024197,2]
[401281561,1768099843951,-162.0,0.0002424,3]
[401281562,1768099843960,-1000.0,0.00024273,2]
[401281563,1768099843970,-500.0,0.00024298,2]
[401281564,1768099843989,-162.0,0.000243,3]
[401281565,1768099843999,-536.0,0.00024319,10]
[401281566,1768099844009,-1000.0,0.00024344,2]
[401281567,1768099844018,-282.6,0.00024362,2]
[401281568,1768099844028,-508.0,0.00024397,2]
[401281569,1768099844037,-162.0,0.0002444,3]
[401281570,1768099844046,-834.0,0.0002444,3]
[401281571,1768099844056,-1000.0,0.00024479,2]
[401281572,1768099844065,-1000.0,0.00024483,2]
[401281573,1768099844074,-1033.36038927,0.00024491,2]
[401281574,1768099844084,-6012.11,0.000245,7]
[401281575,1768099844093,-1000.0,0.00024588,2]
[401281576,1768099844102,-834.0,0.0002462,3]
[401281577,1768099844114,-162.0,0.00024655,3]
[401281578,1768099844125,-600.0,0.00024658,5]
[401281579,1768099844135,-268.12850577,0.00024658,7]
[401281580,1768099844145,-470.71538504,0.00024658,7]
[401281581,1768099844156,-834.0,0.00024667,3]
[401281582,1768099844165,-500.0,0.00024675,2]
[401281583,1768099844175,-805.21355524,0.0002479,2]
[401281584,1768099844184,-500.0,0.00024799,2]
[401281585,1768099844194,-500.42749213,0.00024799,2]
[401281586,1768099844203,-800.0,0.000248,9]
[401281587,1768099844213,-800.0,0.000248,9]
[401281588,1768099844227,-800.0,0.000248,9]
[401281589,1768099844236,-800.0,0.000248,9]
[401281590,1768099844246,-800.0,0.000248,9]
[401281591,1768099844256,-800.0,0.000248,9]
[401281592,1768099844269,-800.0,0.000248,9]
[401281593,1768099844278,-800.0,0.000248,9]
[401281594,1768099844288,-800.0,0.000248,9]
[401281595,1768099844297,-800.0,0.000248,9]
[401281596,1768099844307,-800.0,0.000248,9]
[401281597,1768099844317,-800.0,0.000248,9]
[401281598,1768099844327,-800.0,0.000248,9]
[401281599,1768099844337,-800.0,0.000248,9]
[401281600,1768099844348,-800.0,0.000248,9]
[401281601,1768099844358,-800.0,0.000248,9]
[401281602,1768099844367,-150.0,0.000248,2]
[401281603,1768099844377,-609218.451121,0.000248,3]
[401281604,1768099844387,-800.0,0.000248,9]
[401281605,1768099844396,-800.0,0.000248,9]
[401281606,1768099844406,-800.0,0.000248,9]
[401281607,1768099844416,-800.0,0.000248,9]
[401281608,1768099844425,-800.0,0.000248,9]
[401281609,1768099844435,-800.0,0.000248,9]
[401281610,1768099844444,-800.0,0.000248,9]
[401281611,1768099844455,-800.0,0.000248,9]
[401281612,1768099844464,-361.32,0.00024825,2]
[401281613,1768099844474,-355.67108106,0.00024859,2]
[401281614,1768099844484,-356.46360209,0.00024899,2]
[401281615,1768099844493,-545.25,0.00024899,2]
[401281616,1768099844505,-500.0,0.00024899,2]
[401281617,1768099844515,-511.45493644,0.00024899,2]
[401281618,1768099844526,-506.42227184,0.00024899,2]
[401281619,1768099844536,-506.04921746,0.00024899,2]
[401281620,1768099844545,-500.0,0.00024899,2]
[401281621,1768099844555,-269.02017408,0.00024899,2]
[401281622,1768099844565,-500.0,0.00024899,2]
[401281623,1768099844574,-200.0,0.00024899,2]
[401281624,1768099844584,-154.64445498,0.00024899,2]
[401281625,1768099844593,-158.1726948,0.00024899,2]
[401281626,1768099844603,-152.0,0.00024899,2]
[401281627,1768099844612,-152.0,0.00024899,2]
[401281628,1768099844621,-152.0,0.00024899,2]
[401281629,1768099844631,-152.0,0.00024899,2]
[401281630,1768099844640,-152.0,0.00024899,2]
[401281631,1768099844650,-152.0,0.00024899,2]
[401281632,1768099844659,-152.0,0.00024899,2]
[401281633,1768099844668,-152.0,0.00024899,2]
[401281634,1768099844677,-241.59912361,0.00024899,2]
[401281635,1768099844687,-415463.241291,0.000249,3]
[401281636,1768099844696,-150.0,0.000249,2]
[401281637,1768099844705,-508.0,0.00024959,2]
[401281638,1768099844714,-601.91493791,0.0002497,2]
[401281639,1768099844724,-500.0,0.00024989,2]
[401281640,1768099844733,-500.0,0.00024989,2]
[401281641,1768099844743,-509.03,0.00024999,2]
[401281642,1768099844752,-150.0,0.00025,2]
[401281643,1768099844761,-150.0,0.00025,2]
[401281644,1768099844770,-152.17,0.00025,2]
[401281645,1768099844780,-150.0,0.00025,2]
[401281646,1768099844789,-150.0,0.00025,2]
[401281647,1768099844798,-150.0,0.00025,2]
[401281648,1768099844807,-150.0,0.00025,2]
[401281649,1768099844816,-150.0,0.00025,2]
[401281650,1768099844826,-150.0,0.00025,2]
[401281651,1768099844836,-150.0,0.00025,2]
[401281652,1768099844846,-150.0,0.00025,2]
[401281653,1768099844855,-150.0,0.00025,2]
[401281654,1768099844864,-150.0,0.00025,2]
[401281655,1768099844874,-294.194,0.00025,2]
[401281656,1768099844884,-98999.999999,0.00025,2]
[401281657,1768099844893,-1711.04799035,0.00025,2]
[401281658,1768099844903,-7341.21057503,0.00025,5]
[401281659,1768099844912,-416.80783104,0.00025,3]
[401281660,1768099844921,-150.0,0.00025,2]
[401281661,1768099844931,-2908.83103315,0.00025,2]
[401281662,1768099844941,-450.0,0.00025,2]
[401281663,1768099844951,-200.0,0.00025,2]
[401281664,1768099844961,-500.0,0.00025021,7]
[401281665,1768099844970,-162.0,0.0002512,3]
[401281666,1768099844980,-998.0,0.00025156,2]
[401281667,1768099844990,-6010.0,0.000252,2]
[401281668,1768099844999,-162.0,0.000252,3]
[401281669,1768099845009,-600.0,0.00025205,5]
[401281670,1768099845018,-1300.0,0.00025209,7]
[401281671,1768099845028,-152.0,0.00025236,3]
[401281672,1768099845040,-161.93,0.00025327,2]
[401281673,1768099845049,-158.61,0.00025512,2]
[401281674,1768099845059,-508.0,0.00025521,3]
[401281675,1768099845068,-1300.0,0.00025551,7]
[401281676,1768099845078,-6012.11,0.000256,7]
[401281677,1768099845087,-1300.0,0.00025667,7]
[401281678,1768099845097,-152.0,0.00025683,4]
[401281679,1768099845106,-600.0,0.00025753,5]
[401281680,1768099845115,-150.0,0.000258,2]
[401281681,1768099845124,-282.6,0.00025802,2]
[401281682,1768099845134,-2952.72,0.000259,14]
[401281683,1768099845143,-655.0,0.000259,2]
[401281684,1768099845152,-306.0,0.000259,2]
[401281685,1768099845162,-200.0,0.000259,2]
[401281686,1768099845171,-1846.02974031,0.000259,2]
[401281687,1768099845180,-300.0,0.000259,2]
[401281688,1768099845189,-500.0,0.00025905,7]
[401281689,1768099845199,-3468.0,0.0002597,2]
[401281690,1768099845208,-614.0,0.0002597,2]
[401281691,1768099845217,-1405.0,0.0002597,2]
[401281692,1768099845228,-1267.0,0.0002597,2]
[401281693,1768099845238,-506.0,0.0002597,2]
[401281694,1768099845248,-2437.0,0.0002597,2]
[401281695,1768099845258,-6555.0,0.0002597,2]
[401281696,1768099845274,-500.0,0.00025988,2]
[401281697,1768099845293,-598.92350757,0.0002599,2]
[401281698,1768099845305,-69281.23026502,0.00025999,14]
[401281699,1768099845316,-4507.97468648,0.00026,2]
[401281700,1768099845327,-215.84761761,0.00026,2]
[401281701,1768099845339,-12964.28199609,0.00026,10]
[401281702,1768099845348,-162.47203835,0.00026,2]
[401281703,1768099845358,-1300.0,0.00026019,7]
[401281704,1768099845367,-1000.0,0.00026032,2]
[401281705,1768099845376,-508.0,0.00026082,3]
[401281706,1768099845386,-152.0,0.0002613,5]
[401281707,1768099845395,-500.0,0.00026289,2]
[401281708,1768099845404,-29455.24925266,0.000263,2]
[401281709,1768099845415,-600.0,0.00026301,5]
[401281710,1768099845426,-151.0,0.0002639,7]
[401281711,1768099845437,-27393.14032908,0.000264,2]
[401281712,1768099845448,-500.0,0.000265,7]
[401281713,1768099845459,-152.0,0.00026577,6]
[401281714,1768099845468,-172.29262228,0.00026636,7]
[401281715,1768099845477,-508.0,0.00026644,4]
[401281716,1768099845487,-200.0,0.000268,2]
[401281717,1768099845496,-600.0,0.00026849,5]
[401281718,1768099845505,-500.0,0.00026867,7]
[401281719,1768099845515,-10000.0,0.000269,2]
[401281720,1768099845524,-1300.0,0.00026923,7]
[401281721,1768099845534,-153.440724,0.0002699,7]
[401281722,1768099845543,-151.0,0.0002699,7]
[401281723,1768099845552,-151.0,0.0002699,7]
[401281724,1768099845561,-151.0,0.0002699,7]
[401281725,1768099845572,-151.0,0.0002699,7]
[401281726,1768099845583,-247.866252,0.0002699,7]
[401281727,1768099845594,-151.0,0.0002699,7]
[401281728,1768099845605,-151.0,0.0002699,7]
[401281729,1768099845615,-151.0,0.0002699,7]
[401281730,1768099845697,-237.573048,0.0002699,7]
[401281731,1768099845707,-151.0,0.0002699,7]
[401281732,1768099845720,-151.0,0.0002699,7]
[401281733,1768099845730,-151.0,0.0002699,7]
[401281734,1768099845741,-151.0,0.0002699,7]
[401281735,1768099845752,-151.0,0.0002699,7]
[401281736,1768099845762,-251.992378,0.0002699,7]
[401281737,1768099845772,-151.0,0.0002699,7]
[401281738,1768099845781,-196.383454,0.0002699,7]
[401281739,1768099845790,-196.383454,0.0002699,7]
[401281740,1768099845802,-196.383454,0.0002699,7]
[401281741,1768099845811,-196.383454,0.0002699,7]
[401281742,1768099845821,-3110.69852563,0.00027,30]
[401281743,1768099845830,-250.0,0.00027,2]
[401281744,1768099845839,-1973.07867736,0.00027,14]
[401281745,1768099845849,-1031.0216796,0.00027,2]
[401281746,1768099845860,-530.0,0.00027,2]
[401281747,1768099845869,-465.4737144,0.00027,30]
[401281748,1768099845880,-2000.0,0.00027,2]
[401281749,1768099845890,-151.0,0.00027,7]
[401281750,1768099845900,-178.076643,0.00027,7]
[401281751,1768099845909,-151.0,0.00027,7]
[401281752,1768099845920,-197.382562,0.00027,7]
[401281753,1768099845931,-500.0,0.00027,2]
[401281754,1768099845940,-152.0,0.00027024,7]
[401281755,1768099845951,-1300.0,0.00027055,7]
[401281756,1768099845960,-3675.47,0.00027123,2]
[401281758,1768099845970,-152.42930328,0.00027205,2]
[401281760,1768099845979,-508.0,0.00027205,4]
[401281761,1768099845988,-282.6,0.00027241,2]
[401281763,1768099845997,-509.03,0.00027318,2]
[401281764,1768099846007,-150.20468464,0.00027345,2]
[401281765,1768099846016,-150.0,0.00027345,2]
[401281766,1768099846025,-150.0,0.00027345,2]
[401281767,1768099846036,-150.0,0.00027345,2]
[401281768,1768099846047,-150.26374239,0.00027345,2]
[401281769,1768099846056,-150.0,0.00027345,2]
[401281770,1768099846066,-150.56873292,0.00027345,2]
[401281771,1768099846076,-150.0,0.00027345,2]
[401281772,1768099846085,-150.78921682,0.00027345,2]
[401281773,1768099846095,-150.06091379,0.00027345,2]
[401281774,1768099846107,-150.0,0.00027345,2]
[401281775,1768099846120,-150.58471111,0.00027345,2]
[401281777,1768099846130,-150.0,0.00027345,2]
[401281779,1768099846139,-150.0,0.00027345,2]
[401281780,1768099846148,-150.0,0.00027369,2]
[401281781,1768099846157,-4097.91129562,0.0002739,2]
[401281782,1768099846167,-8094.44213994,0.0002739,2]
[401281783,1768099846175,-4393.80178149,0.0002739,7]
[401281784,1768099846184,-300.0,0.00027396,10]
[401281785,1768099846193,-308.46096969,0.00027396,10]
[401281786,1768099846207,-666.0,0.00027396,2]
[401281787,1768099846216,-865.6,0.00027397,20]
[401281788,1768099846227,-394.2,0.00027397,2]
[401281789,1768099846238,-326.08224787,0.00027397,20]
[401281790,1768099846249,-451.8,0.00027397,7]
[401281791,1768099846260,-357.50467436,0.00027397,31]
[401281792,1768099846272,-362.93147045,0.00027397,6]
[401281793,1768099846283,-627.62051338,0.00027397,16]
[401281794,1768099846293,-600.0,0.00027397,15]
[401281795,1768099846303,-1442.85,0.00027397,2]
[401281796,1768099846313,-385.38718723,0.00027397,30]
[401281797,1768099848007,-500.0,0.0002,2]
[401281798,1768099848017,-174.98053082,0.0002297,2]
[401281799,1768099848040,-324.97946918,0.0002297,2]
[401281800,1768099848126,-208.87,0.00022855,2]
[401281801,1768099848136,-775.27314611,0.0002297,2]
[401281802,1768099848147,-1752.84019875,0.0002297,2]
[401281803,1768099877892,-500.0,0.00013857,2]
[401281804,1768099877922,-500.0,0.00013857,2]
[401281805,1768099897917,500.0,0.0001381,2]
[401281881,1768100046144,506.04921746,0.00013857,2]
[401281882,1768100047845,500.0,0.0001381,2]
[401281887,1768100069024,500.0,0.00013857,2]
[401281888,1768100069263,327.49083589,0.00013857,2]
[401281889,1768100095913,269.02017408,0.00013857,2]
[401281900,1768100172998,-500.0,0.00013958,2]
[401281901,1768100173021,-500.0,0.00013958,2]
[401281902,1768100173045,-500.42749213,0.00013958,2]
[401281904,1768100197116,161.2772,0.00013858,2]
[401281910,1768100260556,500.0,0.00013857,2]
[401281929,1768100423883,545.33,0.000251,120]
[401281930,1768100424094,545.33,0.00027382,120]
[401282466,1768100962444,3005.0,7.4e-07,30]
[401282483,1768101031952,-338.0,0.0001411,2]
[401282484,1768101031963,-999.0,0.0001411,2]